bitfinex/quotes_ETHUSD_20240701
["timestamp","ask_amount","ask_price","bid_price","bid_amount"]
[1719824058930,0.49664857,3487.2,3486.6,3.41811]
[1719824059459,2.4637,3487.0,3486.3,2.86835]
[1719824059656,0.02800008,3486.9,3486.4,0.55]
[1719824059843,0.02800008,3486.9,3486.3,0.55]
[1719824060853,0.02800008,3486.9,3486.4,2.86828]
[1719824061058,0.03698019,3486.8,3486.4,2.86828]
[1719824061285,2.86805,3486.7,3486.2,6.16180217]
[1719824061566,0.02800008,3486.7,3486.2,6.16180217]
[1719824061769,0.02800008,3486.8,3486.2,6.16180217]
[1719824062454,2.4637,3487.0,3486.2,6.16180217]
[1719824062455,0.02800008,3486.9,3486.2,6.16180217]
[1719824062753,0.03725606,3486.8,3486.3,0.55]
[1719824063122,0.03725606,3486.8,3486.4,2.86825]
[1719824063320,0.03725606,3486.8,3486.3,3.41829]
[1719824063555,2.4637,3487.0,3486.5,2.86814]
[1719824064160,0.02800008,3487.2,3486.6,2.86811]
[1719824064462,0.03730477,3487.1,3486.6,2.86811]
[1719824064660,0.03730477,3487.1,3486.8,2.86795]
[1719824064827,2.89543008,3487.5,3486.8,2.86795]
[1719824065028,0.53406274,3487.4,3486.8,2.86795]
[1719824065249,0.49664437,3487.3,3486.8,2.86795]
[1719824065454,0.03733435,3487.2,3486.8,2.86795]
[1719824065777,3.70232909,3487.5,3486.8,2.86795]
[1719824066071,0.49663704,3487.4,3486.8,2.86795]
[1719824066236,0.53407433,3487.3,3486.8,2.86795]
[1719824066431,0.03743729,3487.3,3486.8,2.86795]
[1719824066832,0.03737103,3487.2,3486.6,2.92547604]
[1719824067132,0.80689901,3487.5,3486.6,2.92547604]
[1719824067133,2.86755,3487.3,3486.7,0.55]
[1719824067334,0.03730477,3487.1,3486.7,0.55]
[1719824067533,0.03733435,3487.2,3486.7,0.55]
[1719824067760,0.03715331,3487.0,3486.7,0.55]
[1719824067929,0.03730477,3487.1,3486.7,0.55]
[1719824070743,0.03730477,3487.1,3486.7,3.41804]
[1719824071472,0.03730477,3487.1,3486.8,2.86795]
[1719824071674,2.89544008,3487.5,3486.8,2.86795]
[1719824071979,0.53308638,3487.4,3486.8,2.86795]
[1719824072172,0.49662135,3487.3,3486.9,0.55]
[1719824072469,0.03631581,3487.2,3487.1,2.86769]
[1719824072694,2.3064,3487.6,3487.1,2.86769]
[1719824072836,0.53309984,3487.5,3487.1,2.86769]
[1719824073073,0.03651459,3487.5,3487.0,3.06086055]
[1719824073327,0.03651459,3487.5,3487.1,2.86766]
[1719824078209,0.06451467,3487.5,3487.1,2.86766]
[1719824078410,2.86766,3487.2,3486.6,6.16180217]
[1719824078584,2.49240008,3487.1,3486.7,0.55]
[1719824078999,0.03620521,3487.0,3486.7,0.55]
[1719824082581,0.03620521,3487.0,3486.8,2.8679]
[1719824082908,2.44680008,3487.4,3486.8,2.8679]
[1719824083107,0.03650124,3487.3,3486.8,2.8679]
[1719824083612,0.03650124,3487.3,3486.7,0.55]
[1719824083822,0.85830737,3487.3,3486.7,0.55]
[1719824083988,2.4412,3486.9,3486.2,9.03024217]
[1719824084320,0.02800008,3486.8,3486.0,4.80461]
[1719824084514,2.89602008,3486.8,3486.1,2.86848]
[1719824085311,2.86806,3486.7,3486.0,4.80461]
[1719824085543,0.02800008,3486.6,3486.1,0.55]
[1719824087787,2.89607008,3486.7,3486.1,0.55]
[1719824088121,0.03603193,3486.6,3486.1,0.55]
[1719824088421,0.49673942,3486.5,3486.1,0.55]
[1719824088629,0.02800008,3486.6,3486.1,0.55]
[1719824088805,0.02800008,3486.6,3485.9,6.16180217]
[1719824088806,2.392,3486.4,3485.9,6.16180217]
[1719824089006,2.392,3486.4,3485.9,2.86869]
[1719824089233,0.03583305,3486.3,3485.9,2.86869]
[1719824089521,0.02800008,3486.6,3486.1,2.86852]
[1719824090687,0.02800008,3486.6,3485.9,2.86863]
[1719824090892,0.02800008,3486.6,3486.0,0.55]
[1719824091126,2.89613008,3486.6,3486.0,3.41861]
[1719824091623,0.49673459,3486.5,3486.0,3.41861]
[1719824091929,0.68786805,3486.4,3486.0,0.55]
[1719824092105,0.68786805,3486.4,3485.5,31.33081217]
[1719824092106,2.3854,3486.3,3485.6,2.86889]
[1719824092293,0.02800008,3486.2,3485.7,0.55]
[1719824093229,0.02800008,3486.2,3485.7,3.41884]
[1719824093531,2.41340008,3486.3,3485.7,3.41884]
[1719824095513,0.03575325,3486.2,3485.7,3.41884]
[1719824096838,0.06375333,3486.2,3485.7,3.41884]
[1719824097018,0.06375333,3486.2,3485.7,0.55]
[1719824097219,0.06375333,3486.2,3485.6,3.41894]
[1719824098543,0.06375333,3486.2,3485.6,4.53242313]
[1719824100647,2.93228333,3486.2,3485.6,0.55]
[1719824100824,2.86857,3486.1,3485.6,0.55]
[1719824101022,0.06259914,3486.0,3485.6,0.55]
[1719824101221,0.06259914,3486.0,3485.5,0.55]
[1719824101412,0.02800008,3486.0,3485.5,0.55]
[1719824102732,0.02800008,3486.0,3485.5,3.41902]
[1719824103159,5.25385,3486.3,3485.8,2.86876]
[1719824103160,2.3854,3486.3,3485.8,2.86876]
[1719824103452,0.03479979,3486.2,3485.6,2.92625465]
[1719824103659,0.03479979,3486.2,3485.7,3.41886]
[1719824104438,0.03479979,3486.2,3485.9,2.86864]
[1719824104638,2.86822,3486.5,3485.7,6.37609249]
[1719824104863,2.86822,3486.5,3485.7,5.35486]
[1719824105061,0.03493241,3486.4,3485.8,2.86877]
[1719824105435,0.03493241,3486.4,3485.9,0.55]
[1719824105846,2.3022,3486.6,3485.9,3.41864]
[1719824106046,0.03485462,3486.3,3485.9,3.47600805]
[1719824106347,2.2587,3486.1,3485.9,0.55]
[1719824106685,0.03535198,3486.0,3485.6,0.55]
[1719824106829,2.2587,3486.1,3485.6,0.55]
[1719824107774,2.2587,3486.1,3485.7,2.86886]
[1719824107952,2.4568,3486.4,3485.8,3.41876]
[1719824108446,0.02800008,3486.3,3485.8,3.41876]
[1719824108645,0.06339265,3486.3,3485.8,3.41876]
[1719824109228,0.03539257,3486.3,3485.8,3.41876]
[1719824109450,0.03539257,3486.3,3485.9,2.86869]
[1719824109660,2.89626008,3486.5,3485.9,2.86869]
[1719824109863,0.49676111,3486.4,3486.2,0.807]
[1719824110055,0.03545886,3486.4,3486.2,0.807]
[1719824110676,0.03545886,3486.4,3486.3,2.86837]
[1719824110893,2.2588,3486.9,3486.3,2.86837]
[1719824111110,0.52471538,3486.8,3486.6,0.807]
[1719824111366,0.4967153,3486.7,3486.3,2.86837]
[1719824111573,0.03561788,3486.8,3486.6,0.807]
[1719824111868,0.49669167,3486.7,3486.6,0.807]
[1719824112032,0.53251957,3486.7,3486.6,0.807]
[1719824112235,0.0358279,3486.7,3486.6,0.807]
[1719824112434,0.49669543,3486.8,3486.6,0.807]
[1719824112743,0.53264471,3486.7,3486.6,0.807]
[1719824114378,0.53264471,3486.7,3486.4,0.807]
[1719824114528,0.49669656,3486.6,3486.4,0.807]
[1719824114731,0.03557822,3486.5,3486.4,0.807]
[1719824115262,2.89596008,3486.8,3486.4,0.807]
[1719824115571,1.0291276,3486.7,3486.4,0.807]
[1719824115730,0.496703,3486.6,3486.4,0.807]
[1719824115928,0.496703,3486.6,3486.0,2.8686]
[1719824115929,0.49670358,3486.5,3486.0,2.8686]
[1719824116237,2.89613008,3486.6,3486.2,0.807]
[1719824116238,0.53222598,3486.4,3486.2,0.807]
[1719824116548,0.0355224,3486.4,3486.2,0.807]
[1719824116963,2.89613008,3486.6,3486.2,0.807]
[1719824117188,0.03545612,3486.3,3486.2,0.807]
[1719824117327,2.89613008,3486.6,3486.2,1.357]
[1719824117529,3.40053909,3486.5,3486.1,0.55]
[1719824117748,0.4967504,3486.4,3486.1,0.55]
[1719824117975,0.4967504,3486.4,3486.2,0.807]
[1719824118194,2.89612008,3486.6,3486.2,0.807]
[1719824118195,0.03546018,3486.3,3486.2,0.807]
[1719824118393,0.03546018,3486.3,3486.2,1.357]
[1719824118865,2.89612008,3486.6,3486.2,1.357]
[1719824119067,0.53233066,3486.5,3486.2,1.357]
[1719824119286,0.03559275,3486.5,3486.4,0.807]
[1719824119480,0.4967187,3486.5,3486.4,0.807]
[1719824119794,0.53231145,3486.5,3486.4,0.807]
[1719824121595,0.03559275,3486.5,3486.4,0.807]
[1719824121886,0.49671897,3486.5,3486.4,0.807]
[1719824122062,0.53209418,3486.5,3486.4,0.807]
[1719824122983,0.53209418,3486.5,3486.2,1.357]
[1719824123193,0.49671897,3486.4,3486.2,1.357]
[1719824123563,0.03524262,3486.3,3486.2,1.357]
[1719824124092,2.86828,3486.4,3485.7,8.59620217]
[1719824124395,2.86846,3486.2,3486.0,0.807]
[1719824124897,0.03507537,3486.1,3486.0,0.807]
[1719824127066,2.86828,3486.4,3486.0,1.357]
[1719824127282,0.53198878,3486.3,3486.2,0.807]
[1719824127494,0.53198878,3486.3,3486.0,0.55]
[1719824127658,0.03524262,3486.3,3486.2,0.807]
[1719824128373,2.89616008,3486.6,3486.2,0.807]
[1719824128578,3.36495004,3486.5,3486.2,0.807]
[1719824128897,0.49674004,3486.4,3486.3,0.807]
[1719824129099,0.53204896,3486.4,3486.3,0.807]
[1719824130900,0.03530892,3486.4,3486.3,0.807]
[1719824131103,0.02800008,3486.7,3486.3,1.174551]
[1719824131264,0.53212434,3486.6,3486.5,0.807]
[1719824132963,0.53212434,3486.6,3486.3,0.807]
[1719824133159,0.4967205,3486.5,3486.3,0.807]
[1719824133585,0.0352944,3486.4,3486.3,0.807]
[1719824133784,0.5320149,3486.4,3486.3,0.807]
[1719824134313,0.53201995,3486.4,3486.3,0.807]
[1719824135187,0.53201995,3486.4,3486.3,1.18028777]
[1719824135982,0.53201995,3486.4,3486.3,4.59865777]
[1719824136196,0.0352944,3486.4,3486.3,4.59865777]
[1719824136487,0.52471167,3486.8,3486.3,4.59865777]
[1719824136667,0.53220485,3486.7,3486.5,0.807]
[1719824136999,0.49671159,3486.6,3486.5,0.807]
[1719824137371,0.03540384,3486.6,3486.5,0.807]
[1719824137869,0.5321331,3486.6,3486.5,0.807]
[1719824139116,0.53213466,3486.6,3486.5,0.807]
[1719824140334,0.53213466,3486.6,3486.3,3.79165777]
[1719824140335,0.53213466,3486.6,3486.3,0.92328777]
[1719824140635,0.49673464,3486.5,3486.3,1.357]
[1719824140796,0.49673473,3486.5,3486.3,1.357]
[1719824140998,0.53204027,3486.4,3486.3,1.357]
[1719824141403,0.53204027,3486.4,3485.9,5.27406]
[1719824141623,3.36510473,3486.3,3485.7,9.03064217]
[1719824141864,0.49673473,3486.2,3485.8,3.46166422]
[1719824142036,0.53190768,3486.2,3485.8,3.46166422]
[1719824142236,0.49673473,3486.1,3486.0,0.807]
[1719824142402,0.49673473,3486.1,3485.7,9.03064217]
[1719824142403,3.36526473,3486.1,3485.7,6.16180217]
[1719824142602,2.90363665,3486.1,3485.8,0.807]
[1719824143038,0.49678552,3486.0,3485.8,0.807]
[1719824143240,2.90363665,3486.1,3485.8,0.807]
[1719824143408,0.03491131,3485.9,3485.8,0.807]
[1719824143609,0.49679852,3486.0,3485.8,0.807]
[1719824143820,0.03493446,3485.9,3485.8,0.807]
[1719824144215,2.86853,3486.1,3485.8,1.357]
[1719824144426,0.03489488,3485.9,3485.8,1.357]
[1719824144618,2.86853,3486.1,3485.8,1.357]
[1719824144831,0.49679164,3486.0,3485.8,0.55]
[1719824145036,3.36550176,3485.9,3485.7,6.16180217]
[1719824145357,0.03474942,3485.8,3485.7,6.16180217]
[1719824145731,0.03474942,3485.8,3485.4,0.807]
[1719824145934,0.03474942,3485.8,3485.5,0.55]
[1719824146823,0.0627495,3485.8,3485.5,0.55]
[1719824147016,2.9315295,3485.8,3485.3,0.55]
[1719824147208,2.9315295,3485.8,3485.5,0.807]
[1719824149281,2.86888,3485.7,3485.3,0.55]
[1719824149588,2.86888,3485.7,3485.4,0.807]
[1719824149955,2.89678008,3485.8,3485.2,0.55]
[1719824149956,2.93162686,3485.6,3485.2,0.55]
[1719824150154,2.86903,3485.5,3485.2,0.55]
[1719824150373,2.86903,3485.5,3485.2,1.357]
[1719824150374,0.03446097,3485.4,3485.2,1.357]
[1719824150744,2.86903,3485.5,3485.2,1.357]
[1719824151274,0.02800008,3485.4,3485.1,6.16180217]
[1719824151444,2.86927,3485.2,3485.1,6.16180217]
[1719824151776,2.86927,3485.2,3484.9,0.807]
[1719824151961,2.89711008,3485.4,3484.6,22.73976]
[1719824152174,0.49694581,3485.3,3484.8,0.807]
[1719824152348,0.02800008,3485.2,3484.8,0.807]
[1719824152679,0.03413847,3485.1,3484.8,0.807]
[1719824153856,0.03413847,3485.1,3484.8,3.67654]
[1719824154183,2.3021,3485.5,3485.0,0.807]
[1719824154385,0.02800008,3485.4,3485.3,0.807]
[1719824154956,0.06240888,3485.4,3485.3,0.807]
[1719824155696,0.0344088,3485.4,3485.3,0.807]
[1719824155991,0.02800008,3485.7,3485.3,1.174641]
[1719824156202,0.03440677,3485.4,3485.3,1.174641]
[1719824156373,0.02800008,3485.7,3485.3,1.174641]
[1719824156570,0.03453943,3485.6,3485.3,0.807]
[1719824160284,0.03453943,3485.6,3485.5,3.67602]
[1719824160484,2.2628,3486.4,3485.8,2.86874]
[1719824160685,2.29080008,3486.4,3486.1,0.807]
[1719824160889,0.03288535,3486.3,3486.1,0.807]
[1719824162069,0.03288535,3486.3,3486.2,3.41845]
[1719824162304,0.02800008,3486.9,3486.3,2.86834]
[1719824162509,0.02800008,3486.9,3486.4,0.807]
[1719824162673,0.03007328,3486.8,3486.4,0.807]
[1719824163798,0.03007328,3486.8,3486.3,2.86834]
[1719824164370,0.03007328,3486.8,3486.4,2.3878]
[1719824164606,0.03007328,3486.8,3486.5,0.55]
[1719824164791,0.02800008,3487.3,3486.5,0.55]
[1719824165106,0.02800008,3487.3,3486.8,2.86795]
[1719824165973,3.02800008,3487.5,3486.8,2.86795]
[1719824166173,0.02800008,3487.5,3486.8,2.86795]
[1719824166428,0.02800008,3487.5,3486.9,2.86785]
[1719824166710,0.02800008,3487.5,3486.8,1.24478722]
[1719824166711,0.02800008,3487.7,3487.3,2.86753]
[1719824166880,0.02800008,3487.8,3487.3,2.86749]
[1719824167275,2.8669,3488.1,3487.3,2.86749]
[1719824167276,0.02800008,3488.0,3487.3,2.86749]
[1719824167499,2.89498008,3488.0,3487.3,2.86749]
[1719824167700,3.84224809,3488.0,3487.3,2.86749]
[1719824168218,3.84224809,3488.0,3487.1,2.8677]
[1719824168219,2.86715,3487.8,3487.1,2.8677]
[1719824168412,0.02800008,3487.7,3487.1,2.8677]
[1719824168572,0.0589886,3487.7,3487.1,2.8677]
[1719824170009,0.03098852,3487.7,3487.1,2.8677]
[1719824170483,0.02800008,3487.7,3487.1,2.8677]
[1719824170687,0.03092227,3487.6,3487.1,2.8677]
[1719824171209,0.02800008,3487.5,3486.5,9.03000217]
[1719824171415,2.86762,3487.3,3486.6,2.86812]
[1719824171575,0.02800008,3487.2,3486.6,2.86812]
[1719824171781,0.03013655,3487.1,3486.8,2.86789]
[1719824171998,0.02800008,3487.3,3486.8,2.86789]
[1719824172185,0.03007028,3487.0,3486.8,2.86789]
[1719824172387,0.02800008,3487.3,3486.8,2.86789]
[1719824172590,0.030004,3486.9,3486.8,2.86789]
[1719824172807,0.02800008,3487.3,3486.8,2.86789]
[1719824173129,0.030004,3486.9,3486.8,2.86789]
[1719824173301,0.02800008,3487.3,3486.8,2.86789]
[1719824173501,0.02998086,3486.9,3486.8,2.86789]
[1719824173702,0.02800008,3487.3,3486.8,2.86789]
[1719824174018,0.02800008,3487.3,3486.9,2.86787]
[1719824175510,2.4805,3487.4,3487.1,2.86763]
[1719824175682,0.02800008,3487.6,3487.1,2.86763]
[1719824177410,0.02800008,3487.6,3487.2,2.86761]
[1719824177915,0.02800008,3487.7,3487.2,2.86761]
[1719824178595,0.02800008,3487.7,3487.0,0.05735171]
[1719824178790,0.02800008,3487.7,3486.8,1.937]
[1719824178791,0.02800008,3487.9,3487.4,2.86738]
[1719824178998,0.142,3488.0,3487.5,0.55]
[1719824179222,0.142,3488.0,3487.5,3.41736]
[1719824179421,0.17000008,3488.0,3487.5,3.41736]
[1719824180206,3.03703008,3488.0,3487.3,2.8675]
[1719824180530,2.403,3487.9,3487.3,2.86753]
[1719824180725,0.02800008,3487.8,3487.3,2.86753]
[1719824180927,0.02800008,3487.8,3487.4,2.86745]
[1719824182098,0.02800008,3487.8,3487.2,2.86762]
[1719824184198,2.89514008,3487.8,3487.2,2.86762]
[1719824184398,0.02800008,3487.7,3487.2,2.86762]
[1719824188316,0.02883364,3487.6,3487.2,2.86762]
[1719824189933,0.02883364,3487.6,3487.3,0.807]
[1719824190304,0.02883364,3487.6,3487.0,2.86776]
[1719824190505,2.8676,3487.3,3486.8,6.16180217]
[1719824190743,0.02800008,3487.2,3486.8,0.807]
[1719824191221,0.02863689,3487.1,3486.8,0.807]
[1719824192341,0.02800008,3487.2,3486.8,0.807]
[1719824194210,0.02800008,3487.2,3487.0,0.807]
[1719824194404,0.02876936,3487.1,3487.0,0.807]
[1719824196007,0.02800008,3487.7,3487.0,4.04802866]
[1719824196249,0.49658309,3487.6,3487.4,0.807]
[1719824196541,0.02800008,3487.7,3487.4,0.807]
[1719824196542,0.49658309,3487.5,3487.4,0.807]
[1719824199242,0.49656363,3487.5,3487.4,0.807]
[1719824199440,0.49656363,3487.5,3487.4,3.67446]
[1719824199834,0.49656363,3487.5,3487.4,0.807]
[1719824200948,0.02800008,3487.7,3487.4,0.807]
[1719824201942,0.49654859,3487.5,3487.4,0.807]
[1719824203257,0.52540983,3487.5,3487.4,0.807]
[1719824204744,0.02886124,3487.5,3487.4,0.807]
[1719824205151,0.02800008,3487.7,3487.4,0.807]
[1719824205317,0.02893165,3487.5,3487.4,0.807]
[1719824205517,2.41420008,3487.8,3487.4,0.807]
[1719824205748,0.02884547,3487.5,3487.4,0.807]
[1719824205952,2.41420008,3487.8,3487.4,0.807]
[1719824206140,0.02884547,3487.5,3487.4,0.807]
[1719824206338,2.41420008,3487.8,3487.4,0.807]
[1719824206516,0.02884547,3487.5,3487.4,0.807]
[1719824206720,2.41420008,3487.8,3487.4,0.807]
[1719824207219,0.02897798,3487.7,3487.6,0.807]
[1719824207418,0.17000008,3488.0,3487.6,3.6743]
[1719824207419,0.142,3488.0,3487.6,3.6743]
[1719824207616,0.02894024,3487.7,3487.6,3.6743]
[1719824207819,0.142,3488.0,3487.6,3.6743]
[1719824208057,0.028957,3487.7,3487.6,3.6743]
[1719824208354,0.142,3488.0,3487.6,3.6743]
[1719824208555,0.02900327,3487.7,3487.6,3.6743]
[1719824208858,0.142,3488.0,3487.6,3.6743]
[1719824208859,0.142,3488.0,3487.7,2.86721]
[1719824209926,0.49651807,3487.9,3487.7,2.86721]
[1719824210127,0.49651807,3487.8,3487.7,2.86721]
[1719824210521,0.49651807,3487.8,3487.7,3.521369]
[1719824210727,0.142,3488.0,3487.8,2.86705]
[1719824211048,0.142,3488.0,3487.9,3.67405]
[1719824211242,0.142,3488.0,3487.9,2.86705]
[1719824211444,0.142,3488.0,3487.9,3.67405]
[1719824211656,0.142,3488.0,3487.9,7.8106419]
[1719824212158,0.142,3488.0,3487.9,10.2248419]
[1719824215428,0.142,3488.0,3487.9,7.0036419]
[1719824215672,0.142,3488.0,3487.9,0.55]
[1719824215961,0.142,3488.0,3487.9,3.67405]
[1719824216166,0.16911538,3488.0,3487.9,4.22405]
[1719824217389,0.142,3488.0,3487.9,4.22405]
[1719824217602,0.16911471,3488.0,3487.9,4.22405]
[1719824218299,0.16911471,3488.0,3487.9,4.54894436]
[1719824221062,0.16911471,3488.0,3487.9,1.68189436]
[1719824221271,0.16911471,3488.0,3487.9,1.357]
[1719824223095,0.16911471,3488.0,3487.9,0.807]
[1719824223260,2.56121471,3488.0,3487.4,2.86743]
[1719824223472,2.56121471,3488.0,3487.9,0.807]
[1719824225512,2.56121471,3488.0,3487.5,0.55]
[1719824225803,2.56121471,3488.0,3487.7,0.807]
[1719824225978,2.5341,3488.0,3487.7,0.807]
[1719824226190,2.5341,3488.0,3487.4,0.55]
[1719824226191,0.02704889,3487.9,3487.6,2.86729]
[1719824226351,0.02704889,3487.9,3487.8,0.807]
[1719824227161,0.02704889,3487.9,3487.8,3.67413]
[1719824228659,0.02704889,3487.9,3487.8,0.807]
[1719824229701,0.02800008,3488.2,3487.8,0.807]
[1719824229870,0.02800008,3488.2,3488.0,0.807]
[1719824230272,2.89480008,3488.2,3488.0,0.807]
[1719824231170,3.36345484,3488.1,3487.4,3.41745]
[1719824231372,0.02800008,3488.1,3487.8,0.807]
[1719824232606,2.8668,3488.2,3487.8,0.807]
[1719824232813,0.49651052,3488.1,3487.8,0.807]
[1719824233108,2.8668,3488.2,3487.8,0.807]
[1719824233411,0.02714055,3488.0,3487.8,0.807]
[1719824233561,0.49650844,3488.1,3487.8,0.807]
[1719824233756,2.8668,3488.2,3487.8,0.807]
[1719824234002,0.02714055,3488.0,3487.8,0.807]
[1719824234203,2.8668,3488.2,3487.8,0.807]
[1719824234501,3.36340074,3488.1,3487.8,0.807]
[1719824234667,2.89409678,3488.1,3487.8,0.807]
[1719824235081,2.89409678,3488.1,3487.4,0.55]
[1719824235082,2.3665,3487.9,3487.4,0.55]
[1719824235283,2.86714,3487.8,3487.7,0.807]
[1719824235595,2.3665,3487.9,3487.6,0.807]
[1719824235840,0.02699659,3487.8,3487.6,0.807]
[1719824236499,0.02699659,3487.8,3487.6,4.58633286]
[1719824236719,5.14764,3488.2,3487.6,4.58633286]
[1719824236912,0.49650299,3488.1,3488.0,0.807]
[1719824238840,3.36339299,3488.1,3487.8,0.807]
[1719824239129,0.49650299,3488.0,3487.8,0.807]
[1719824239330,3.36348299,3488.0,3487.8,0.807]
[1719824239509,0.49650299,3487.9,3487.8,0.807]
[1719824239708,0.49652897,3487.9,3487.8,0.807]
[1719824240236,0.49652248,3487.9,3487.8,0.807]
[1719824241094,0.49652248,3487.9,3487.4,3.41745]
[1719824241298,2.86698,3488.0,3487.6,0.807]
[1719824241498,0.49653073,3487.9,3487.6,0.807]
[1719824241741,5.14764,3488.2,3487.6,0.807]
[1719824241958,0.49652675,3488.1,3487.6,0.807]
[1719824242112,0.49652675,3488.0,3487.6,0.807]
[1719824242454,0.49652675,3487.9,3487.6,0.807]
[1719824242598,5.14764,3488.2,3487.6,0.807]
[1719824242799,3.39023265,3488.1,3487.6,0.807]
[1719824243020,0.49652706,3488.0,3487.6,0.807]
[1719824243240,0.02668312,3487.9,3487.6,0.807]
[1719824243441,0.02668312,3487.9,3487.8,0.807]
[1719824243641,0.52320693,3487.9,3487.8,0.807]
[1719824243943,0.02668312,3487.9,3487.8,0.807]
[1719824244234,0.52320265,3487.9,3487.8,0.807]
[1719824244437,0.02668312,3487.9,3487.8,0.807]
[1719824244615,2.86689,3488.1,3487.8,0.807]
[1719824244811,0.49651717,3488.0,3487.8,0.807]
[1719824245020,0.02795645,3488.0,3487.8,0.807]
[1719824245618,5.14761,3488.2,3487.8,0.807]
[1719824245825,0.49650348,3488.1,3487.8,0.807]
[1719824246138,0.49650481,3488.0,3487.8,0.807]
[1719824246342,0.0279637,3488.0,3487.8,0.807]
[1719824246640,0.02789273,3487.9,3487.8,0.807]
[1719824246844,2.2808,3488.2,3487.8,1.174414]
[1719824247003,0.4965044,3488.1,3487.8,1.174414]
[1719824247200,0.4965044,3488.0,3487.8,1.174414]
[1719824247438,5.22187,3488.4,3487.8,1.174414]
[1719824247641,0.02789273,3487.9,3487.8,3.67412]
[1719824247801,0.02790394,3487.9,3487.8,3.67412]
[1719824248140,2.86672,3488.3,3487.8,3.67412]
[1719824248306,0.02790394,3487.9,3487.8,3.67412]
[1719824248510,2.86672,3488.3,3487.8,4.328255]
[1719824248737,0.49649241,3488.2,3488.0,0.807]
[1719824248917,0.49649241,3488.1,3488.0,0.807]
[1719824249118,2.3552,3488.4,3488.0,0.807]
[1719824249352,0.49648864,3488.3,3488.0,0.807]
[1719824249516,2.3552,3488.4,3488.0,0.807]
[1719824249725,0.49649081,3488.2,3488.0,0.807]
[1719824249920,0.49649081,3488.1,3488.0,0.807]
[1719824250840,0.49649081,3488.1,3488.0,1.2398255]
[1719824251041,2.3552,3488.4,3488.0,4.1067955]
[1719824251208,0.49644844,3488.3,3488.0,3.2997955]
[1719824251541,2.2935,3488.7,3488.2,0.807]
[1719824251720,0.49645066,3488.6,3488.2,0.807]
[1719824251919,0.49645066,3488.5,3488.2,0.807]
[1719824252108,0.49645069,3488.4,3488.2,0.807]
[1719824252310,0.49645626,3488.3,3488.2,0.807]
[1719824254304,0.49645626,3488.3,3488.2,1.174396]
[1719824254845,5.14361,3488.8,3488.2,1.174396]
[1719824255014,0.496442,3488.7,3488.4,0.807]
[1719824255346,2.86639,3488.7,3488.4,0.807]
[1719824255651,0.49644127,3488.6,3488.4,0.807]
[1719824255837,0.49644127,3488.5,3488.4,0.807]
[1719824256031,0.49644127,3488.7,3488.4,0.807]
[1719824256236,0.49644127,3488.6,3488.4,0.807]
[1719824256542,0.49644127,3488.5,3488.4,0.807]
[1719824258458,5.14362,3488.8,3488.4,0.807]
[1719824258660,0.49644543,3488.5,3488.4,0.807]
[1719824258858,2.86639,3488.7,3488.4,0.807]
[1719824259064,0.49644535,3488.5,3488.4,0.807]
[1719824261360,0.49645976,3488.5,3488.4,0.807]
[1719824261565,0.49645223,3488.5,3488.4,0.807]
[1719824261740,0.49645063,3488.5,3488.4,0.807]
[1719824261927,0.49645063,3488.5,3488.2,0.807]
[1719824262265,0.49645063,3488.4,3488.2,0.807]
[1719824262430,0.49645063,3488.6,3488.2,0.807]
[1719824262755,3.36293063,3488.6,3488.2,0.807]
[1719824262963,0.49645063,3488.5,3488.2,0.807]
[1719824263322,0.02827533,3488.4,3488.2,0.807]
[1719824263758,2.86648,3488.6,3488.2,0.807]
[1719824263951,0.02820438,3488.3,3488.2,0.807]
[1719824264150,2.86648,3488.6,3488.2,1.58555053]
[1719824264351,0.02820438,3488.3,3488.2,0.807]
[1719824264563,2.86648,3488.6,3488.2,0.807]
[1719824264761,0.02820438,3488.3,3488.2,0.807]
[1719824264971,2.86648,3488.6,3488.2,0.807]
[1719824265260,0.49645793,3488.5,3488.2,0.807]
[1719824265460,0.52473362,3488.4,3488.2,0.807]
[1719824265672,0.02827569,3488.4,3488.2,1.707981]
[1719824265880,2.86626,3488.9,3488.2,1.707981]
[1719824266035,0.02820438,3488.3,3488.2,0.807]
[1719824266236,2.86626,3488.9,3488.2,0.807]
[1719824266450,0.5250061,3488.8,3488.2,0.807]
[1719824266660,0.49644701,3488.7,3488.4,0.807]
[1719824266870,0.02855909,3488.8,3488.6,0.807]
[1719824267078,0.49642133,3488.7,3488.6,0.807]
[1719824268250,0.49639865,3488.7,3488.6,0.807]
[1719824268456,2.4049,3489.0,3488.6,0.807]
[1719824268665,0.49639576,3488.7,3488.6,0.807]
[1719824269282,0.49639576,3488.9,3488.6,0.807]
[1719824269633,0.49639576,3488.8,3488.6,0.807]
[1719824269951,0.49639576,3488.7,3488.4,3.67362]
[1719824270155,0.49639576,3488.9,3488.4,3.67362]
[1719824270370,0.4964148,3488.8,3488.4,3.67362]
[1719824270573,0.4964148,3488.7,3488.4,3.67362]
[1719824270789,5.27105,3489.0,3488.4,4.327647]
[1719824271089,0.49641275,3488.9,3488.4,4.327647]
[1719824271395,0.49641471,3488.8,3488.4,4.327647]
[1719824271689,0.49641471,3488.7,3488.4,4.327647]
[1719824271986,5.27105,3489.0,3488.4,4.327647]
[1719824272186,0.49641275,3488.9,3488.4,4.327647]
[1719824272490,0.49641275,3488.8,3488.6,0.807]
[1719824272691,0.49641275,3488.9,3488.6,1.2397647]
[1719824272863,0.49641275,3488.8,3488.6,1.2397647]
[1719824273066,0.49641275,3488.7,3488.6,1.2397647]
[1719824274392,2.86615,3489.0,3488.6,1.2397647]
[1719824274687,0.52474348,3488.9,3488.6,1.2397647]
[1719824274891,0.49640271,3488.8,3488.6,1.2397647]
[1719824275089,0.49640271,3488.7,3488.6,1.2397647]